bitfinex/quotes_ETHUSD_20260131
["timestamp","ask_amount","ask_price","bid_price","bid_amount"]
[1769892806243,1.05503038,2369.6,2368.3,1.64279716]
[1769892806244,13.65234058,2369.4,2368.3,1.64279716]
[1769892806754,13.65234058,2369.4,2368.1,0.59357029]
[1769892807058,13.65234058,2369.4,2368.3,1.05560534]
[1769892807625,14.70737096,2369.6,2368.3,1.05560534]
[1769892807958,14.70737096,2369.6,2368.7,0.0011]
[1769892808166,13.65234058,2369.4,2367.9,1.05575954]
[1769892808471,1.06770866,2369.6,2367.9,1.05575954]
[1769892808472,1.05503038,2369.6,2368.5,0.0011]
[1769892809240,14.70737096,2369.6,2368.5,0.0011]
[1769892809940,14.70737096,2369.6,2368.0,0.52790676]
[1769892809941,13.65234058,2369.2,2368.0,0.52790676]
[1769892810343,14.53734058,2369.2,2367.9,1.0557669]
[1769892810553,14.53734058,2369.2,2367.6,0.0011]
[1769892810554,14.55001886,2369.2,2367.6,0.0011]
[1769892810753,14.55001886,2369.2,2367.9,1.05578737]
[1769892811239,14.55001886,2369.2,2367.7,1.05586079]
[1769892811434,13.65234058,2369.0,2367.7,1.837028]
[1769892812174,13.65234058,2368.8,2367.7,1.837028]
[1769892812547,13.65234058,2368.8,2367.7,0.78116721]
[1769892812751,13.65234058,2368.8,2367.6,0.0011]
[1769892813262,13.65234058,2368.4,2367.1,0.0011]
[1769892813470,13.65234058,2368.2,2367.1,0.0011]
[1769892813774,13.65234058,2368.0,2367.1,0.0011]
[1769892814270,13.65234058,2367.8,2367.1,0.0011]
[1769892815651,13.65234058,2367.8,2366.9,0.0011]
[1769892815862,1.05578782,2367.9,2366.9,0.0011]
[1769892816374,1.05569866,2368.1,2366.9,0.0011]
[1769892816583,1.05568854,2368.2,2366.9,10.30166847]
[1769892816758,1.05568854,2368.2,2367.0,1.03016685]
[1769892817249,1.05543124,2368.8,2367.0,11.3434136]
[1769892817453,13.17520428,2369.0,2367.4,10.30056847]
[1769892817454,4.22154677,2368.9,2367.4,10.30056847]
[1769892817757,4.22110901,2369.1,2367.6,10.30056847]
[1769892817758,4.22106771,2369.1,2367.6,10.30056847]
[1769892818063,1.05525304,2369.1,2367.8,0.01267828]
[1769892818253,1.05525304,2369.1,2367.9,1.05578782]
[1769892818461,4.21994583,2369.7,2368.0,0.54184002]
[1769892819159,17.38247183,2369.7,2368.0,0.54184002]
[1769892819482,13.162526,2369.6,2368.0,0.52916174]
[1769892819968,13.163526,2369.5,2368.0,0.52916174]
[1769892820285,1.05511943,2369.4,2368.1,1.05569866]
[1769892820476,17.38400375,2369.5,2368.1,1.05569866]
[1769892820477,0.001,2369.5,2368.3,10.31324675]
[1769892820673,1.05607919,2369.5,2368.3,10.31324675]
[1769892820875,1.05607919,2369.5,2368.4,1.0325925]
[1769892821183,0.001,2369.5,2368.2,10.54681705]
[1769892821686,1.05607641,2369.5,2368.2,10.54681705]
[1769892821861,1.05607641,2369.5,2368.2,10.53413877]
[1769892822867,0.001,2369.5,2368.3,1.0556095]
[1769892823370,0.001,2369.5,2368.3,1.06828778]
[1769892823669,0.001,2369.5,2368.4,1.58375429]
[1769892823881,13.162526,2369.9,2368.4,1.58375429]
[1769892823882,0.28164624,2370.0,2368.8,10.31224675]
[1769892824068,0.28164624,2370.0,2368.9,11.19724675]
[1769892824271,0.28164624,2370.0,2369.0,0.01267828]
[1769892824478,0.28164624,2370.0,2369.1,0.01267828]
[1769892824679,1.05461334,2370.6,2369.2,0.01267828]
[1769892824888,1.05457265,2370.7,2369.3,1.05516397]
[1769892825084,0.001,2370.9,2369.6,0.01267828]
[1769892825390,0.001,2370.9,2369.7,0.89767828]
[1769892825570,0.001,2370.9,2369.9,0.01267828]
[1769892825778,0.28157696,2371.4,2370.0,10.03060051]
[1769892825979,0.28157696,2371.4,2370.2,0.01267828]
[1769892826185,0.001,2371.7,2370.8,0.01267828]
[1769892826492,0.001,2371.7,2370.9,0.89767828]
[1769892826686,0.001,2371.7,2371.0,0.01267828]
[1769892826893,0.001,2371.7,2371.1,1.05436295]
[1769892827063,0.001,2372.4,2371.1,1.05436295]
[1769892827064,0.001,2372.4,2371.4,0.01267828]
[1769892827496,0.001,2372.4,2371.5,0.01267828]
[1769892828062,0.001,2372.4,2371.1,1.68525836]
[1769892828265,13.54352218,2372.4,2370.5,0.01267828]
[1769892828499,13.54352218,2372.4,2371.0,1.05439932]
[1769892828681,13.54352218,2372.4,2370.6,5.51250393]
[1769892828886,13.54252218,2372.2,2370.7,1.05454085]
[1769892829082,13.54252218,2372.2,2370.9,0.01267828]
[1769892829272,1.05382961,2372.3,2371.0,0.01267828]
[1769892829479,1.05382961,2372.3,2370.8,0.67065059]
[1769892829795,14.59635179,2372.3,2370.8,0.67065059]
[1769892829990,14.59635179,2372.3,2370.9,0.01267828]
[1769892830407,1.3344386,2373.2,2371.9,10.01692223]
[1769892830705,5.0,2373.1,2371.9,0.885]
[1769892831072,14.59604093,2373.0,2371.7,1.05408384]
[1769892831271,14.59604093,2373.0,2371.8,1.05401475]
[1769892831473,0.001,2372.1,2371.5,1.05416124]
[1769892831719,0.001,2372.1,2370.8,0.65797231]
[1769892831886,5.0,2372.0,2370.9,0.884]
[1769892832207,5.0,2372.0,2371.1,1.05432863]
[1769892832372,5.0,2372.0,2370.9,0.884]
[1769892832574,13.54352218,2372.1,2370.7,1.05450927]
[1769892832771,13.54252218,2371.9,2370.6,5.51250393]
[1769892832978,1.05400733,2371.9,2371.0,1.05440037]
[1769892833284,9.21602934,2372.0,2371.0,1.05440037]
[1769892833285,5.0,2371.8,2371.0,1.05440037]
[1769892833827,1.05397854,2372.0,2371.0,1.05440037]
[1769892834128,5.95397854,2372.0,2371.0,1.05440037]
[1769892834502,5.95397303,2372.0,2371.0,1.05440037]
[1769892834699,5.95397303,2372.0,2371.0,2.00463652]
[1769892836316,4.9,2372.0,2371.0,2.0173148]
[1769892836627,4.9,2372.1,2371.0,2.0173148]
[1769892836928,4.9,2372.1,2371.0,2.00463652]
[1769892837128,4.9,2372.1,2371.1,1.62392119]
[1769892837302,4.9,2372.1,2371.2,0.884]
[1769892837830,4.9,2372.1,2371.3,1.05427402]
[1769892838198,1.05385332,2372.3,2371.3,1.05427402]
[1769892838425,4.9,2372.3,2371.3,1.0669523]
[1769892838623,4.9,2372.3,2371.4,0.61807267]
[1769892838930,5.95383864,2372.3,2371.4,0.61807267]
[1769892840004,5.95383864,2372.3,2371.5,1.05418511]
[1769892840330,5.95383864,2372.3,2371.4,1.67227013]
[1769892841139,4.9,2372.3,2371.4,1.67227013]
[1769892841446,13.54252218,2372.2,2370.7,1.05450567]
[1769892841611,13.54252218,2372.1,2370.9,1.05444033]
[1769892841811,13.54252218,2372.1,2370.8,1.05446691]
[1769892842141,13.54252218,2372.1,2370.6,10.61476908]
[1769892842142,5.95397687,2372.0,2370.7,1.05454085]
[1769892842534,4.9,2372.0,2370.7,1.05454085]
[1769892842710,4.9,2372.0,2370.8,0.11507828]
[1769892842909,1.05377588,2372.5,2371.0,0.01267828]
[1769892843226,4.9,2372.4,2371.3,0.01267828]
[1769892843412,5.95360755,2372.8,2371.4,0.884]
[1769892843812,4.9,2372.8,2371.5,0.24624858]
[1769892844034,4.9,2372.8,2371.6,0.01267828]
[1769892844234,5.95362245,2372.8,2371.7,1.05409621]
[1769892844533,5.95362245,2372.8,2371.8,0.52704811]
[1769892846218,5.95362245,2372.8,2371.9,1.05400733]
[1769892847340,12.87543207,2372.7,2371.3,1.05424694]
[1769892847716,12.87543207,2372.7,2371.4,1.05422703]
[1769892847919,12.87543207,2372.5,2371.4,1.58137618]
[1769892848122,13.92921726,2372.4,2371.4,1.58137618]
[1769892848334,13.92921726,2372.4,2371.4,1.05422703]
[1769892848637,4.9,2372.3,2371.2,4.21725977]
[1769892848803,4.9,2372.3,2371.4,1.05422896]
[1769892849008,4.9,2372.3,2371.3,4.21698256]
[1769892849009,17.77543207,2372.3,2371.2,4.21723666]
[1769892849338,17.77543207,2372.3,2371.4,1.05422259]
[1769892850046,4.9,2372.3,2371.4,1.05422259]
[1769892850226,4.9,2372.3,2371.3,4.21709129]
[1769892851013,5.95383617,2372.3,2371.3,4.21709129]
[1769892851219,4.9,2372.3,2371.4,0.884]
[1769892851418,4.9,2372.3,2371.5,0.51010913]
[1769892852256,4.9,2372.3,2371.6,1.05414066]
[1769892852538,4.9,2372.3,2371.5,1.56426557]
[1769892852539,5.95383191,2372.3,2371.5,1.56426557]
[1769892852905,5.95383191,2372.3,2371.5,1.05417348]
[1769892852906,18.82926398,2372.3,2371.5,1.05417348]
[1769892853409,18.82926398,2372.3,2371.4,1.93822019]
[1769892853611,18.82926398,2372.3,2371.3,1.05424503]
[1769892853833,12.87543207,2372.2,2371.0,0.0011]
[1769892854137,12.88811035,2372.2,2371.0,1.05550505]
[1769892854315,12.87543207,2372.0,2371.0,0.0011]
[1769892854519,4.9,2372.1,2371.0,0.2346703]
[1769892854752,1.05372116,2372.6,2371.0,10.02970051]
[1769892854909,4.9,2372.6,2371.1,10.02860051]
[1769892855110,4.9,2372.6,2371.2,11.25373041]
[1769892855318,4.9,2372.6,2371.7,0.0011]
[1769892855756,13.15643901,2373.2,2371.7,0.0011]
[1769892855925,12.87543207,2374.0,2372.1,10.36457081]
[1769892856139,4.9,2374.0,2372.5,10.01592223]
[1769892856352,4.9,2374.0,2372.8,0.2335703]
[1769892856558,4.9,2374.0,2372.8,10.26217081]
[1769892856737,4.9,2374.0,2372.8,10.24949253]
[1769892857541,5.95307869,2374.0,2372.7,1.05365195]
[1769892857844,12.88811035,2373.7,2372.5,1.05371933]
[1769892858047,12.88811035,2373.7,2372.6,1.05368386]
[1769892858243,4.9,2373.6,2372.6,1.05368386]
[1769892859647,1.05301647,2374.2,2372.7,10.24949253]
[1769892859865,4.9,2373.7,2372.7,10.24949253]
[1769892860073,4.9,2374.1,2372.7,10.24949253]
[1769892860235,4.9,2374.1,2372.9,0.2335703]
[1769892860557,4.9,2374.1,2373.0,1.05351875]
[1769892860857,5.95304638,2374.1,2373.1,0.884]
[1769892861035,18.82847845,2374.1,2373.1,0.884]
[1769892861233,12.87543207,2374.0,2373.1,0.884]
[1769892861660,4.9,2373.9,2373.1,0.884]
[1769892862666,1.05311933,2373.9,2373.2,1.05342996]
[1769892863362,17.77543207,2373.8,2372.8,1.93657726]
[1769892863538,17.77543207,2373.8,2372.8,2.55170218]
[1769892864136,17.77543207,2373.8,2372.0,0.01267828]
[1769892864137,12.87543207,2373.7,2372.0,0.01267828]
[1769892864342,12.87543207,2373.7,2372.6,1.05369114]
[1769892864563,17.77543207,2373.6,2372.6,1.05369114]
[1769892864777,1.05329681,2373.5,2372.4,1.05378519]
[1769892864943,1.05329681,2373.5,2372.3,1.9367954]
[1769892864944,12.87543207,2373.4,2372.3,1.9367954]
[1769892865173,12.87543207,2373.4,2371.7,0.0011]
[1769892865486,4.9,2373.3,2372.3,1.05381664]
[1769892865641,4.9,2373.5,2372.3,1.05381664]
[1769892865836,4.9,2373.5,2372.4,0.52691351]
[1769892866843,5.95332216,2373.5,2372.5,1.05374077]
[1769892867044,4.9,2373.5,2372.5,1.05374077]
[1769892867262,5.95331504,2373.5,2372.5,1.05374077]
[1769892867767,5.95331504,2373.5,2372.4,1.58066831]
[1769892867963,5.95331504,2373.5,2372.5,0.47421742]
[1769892868638,18.82874711,2373.5,2372.5,0.47421742]
[1769892868836,18.82974711,2373.5,2372.6,1.05369636]
[1769892869644,4.901,2373.5,2372.6,1.05369636]
[1769892869846,5.95430969,2373.5,2372.6,1.05369636]
[1769892870046,5.95430969,2373.5,2372.5,1.05371145]
[1769892870766,12.88811035,2373.4,2372.0,1.05393757]
[1769892870977,12.87543207,2373.2,2371.7,0.8841]
[1769892871201,12.87543207,2373.2,2371.7,10.90002223]
[1769892871366,5.95338558,2373.3,2371.7,0.8841]
[1769892871367,17.77543207,2373.1,2371.7,0.8841]
[1769892871561,12.87543207,2373.0,2371.7,0.8841]
[1769892872090,4.9,2373.1,2371.7,0.8841]
[1769892873190,1.05351875,2373.0,2371.8,1.05405177]
[1769892873891,1.05351875,2373.0,2371.7,5.1003071]
[1769892873892,12.87543207,2372.8,2371.7,0.0011]
[1769892874392,12.87543207,2372.8,2371.7,1.05519222]
[1769892875261,12.87543207,2372.6,2371.7,0.0011]
[1769892876483,5.95365195,2372.7,2371.7,0.0011]
[1769892876484,4.9,2372.5,2371.7,0.0011]
[1769892877382,4.21418244,2373.0,2371.8,0.01267828]
[1769892877582,4.9,2372.6,2371.8,0.01267828]
[1769892877769,9.11418244,2373.0,2371.8,0.01267828]
[1769892878287,4.9,2373.0,2371.9,0.01267828]
[1769892878459,4.9,2373.0,2372.2,0.01267828]
[1769892879391,1.05336106,2373.4,2372.3,1.06650789]
[1769892879563,19.16902678,2373.4,2372.3,1.05382961]
[1769892879882,13.21566572,2373.3,2372.3,1.05382961]
[1769892880084,5.95336106,2373.4,2372.3,1.05382961]
[1769892880391,4.9,2373.4,2372.4,0.61648264]
[1769892880578,4.9,2373.4,2372.4,0.62916092]
[1769892880777,4.9,2373.4,2372.6,0.01267828]
[1769892881378,0.001,2373.5,2372.7,1.06633023]
[1769892881559,4.901,2373.5,2372.8,0.01267828]
[1769892881759,4.21170371,2374.4,2372.9,0.24624858]
[1769892881983,9.11170371,2374.4,2373.0,0.01267828]
[1769892882183,9.11170371,2374.4,2373.1,0.883]
[1769892882600,4.9,2374.4,2373.3,0.01267828]
[1769892882891,4.9,2374.4,2373.2,0.2335703]
[1769892883091,4.9,2374.4,2373.4,0.01267828]
[1769892883589,4.9,2374.4,2373.6,1.05325244]
[1769892883785,4.9,2374.4,2373.7,0.52789405]
[1769892884188,13.96310333,2374.9,2373.7,0.52789405]
[1769892884391,15.01579663,2374.9,2373.7,0.54057233]
[1769892884772,4.9,2374.8,2373.9,0.01267828]
[1769892884974,4.9,2374.8,2374.2,0.01267828]
[1769892885276,15.29571801,2375.3,2374.0,0.883]
[1769892885466,13.96310333,2375.1,2374.0,0.883]
[1769892885667,13.96310333,2375.1,2374.1,1.05303062]
[1769892885668,1.05263157,2375.0,2374.1,1.05303062]
[1769892886065,13.96310333,2374.9,2373.9,1.05309715]
[1769892886693,13.96310333,2374.9,2373.8,1.05314046]
[1769892886990,13.96310333,2374.9,2373.9,1.05308498]
[1769892887195,13.96310333,2374.9,2373.4,0.01267828]
[1769892887396,13.96310333,2374.9,2373.4,1.05331434]
[1769892887696,13.96310333,2374.5,2372.9,1.05356315]
[1769892887894,14.84610333,2374.5,2372.9,1.63342381]
[1769892889806,13.96310333,2374.3,2372.9,1.63342381]
[1769892889989,13.96310333,2374.3,2372.9,1.63341314]
[1769892890184,13.96310333,2374.3,2372.9,0.57986066]
[1769892890386,1.06557585,2374.4,2372.8,0.53062946]
[1769892890387,13.96310333,2374.2,2372.8,1.58423128]
[1769892890578,13.96310333,2374.2,2372.9,1.05352964]
[1769892891804,14.84610333,2374.5,2373.0,0.01267828]
[1769892891972,15.01598525,2374.5,2373.4,0.01267828]
[1769892892392,1.05284306,2374.6,2373.4,0.01267828]
[1769892892699,4.21070477,2374.9,2373.7,0.01267828]
[1769892892872,4.16070477,2374.9,2373.7,0.01267828]
[1769892893373,18.1238081,2374.9,2373.7,0.01267828]
[1769892893878,18.1238081,2374.9,2373.7,1.05320807]
[1769892894390,1.05267076,2375.0,2373.9,0.01267828]
[1769892895004,15.01577409,2375.0,2373.7,1.06588635]
[1769892895173,15.01577409,2375.0,2373.8,0.53040752]
[1769892896404,15.01577409,2375.0,2373.9,1.05311933]
[1769892896589,14.96577409,2375.0,2373.9,1.05311933]
[1769892896790,14.96577409,2375.0,2374.0,0.57960042]
[1769892897398,0.28008783,2375.3,2374.0,0.57960042]
[1769892897612,0.28008783,2375.3,2374.3,0.01267828]
[1769892897776,0.28008783,2375.3,2374.4,0.89567828]
[1769892897975,18.17150456,2376.2,2374.5,0.01267828]
[1769892897976,13.96310333,2376.0,2374.5,0.01267828]
[1769892898288,13.96310333,2376.0,2374.6,0.01267828]
[1769892898494,15.01533616,2375.9,2374.7,1.05276455]
[1769892898798,13.96310333,2375.9,2374.8,0.01267828]
[1769892898999,18.17143047,2376.3,2374.8,0.01267828]
[1769892899203,18.17143047,2376.3,2374.9,0.01267828]
[1769892899703,18.17143047,2376.3,2375.0,0.01267828]
[1769892900176,4.20832714,2376.3,2375.0,0.01267828]
[1769892900502,1.05214427,2376.1,2374.9,1.0526759]
[1769892900799,1.05214427,2376.1,2374.8,1.58288508]
[1769892900800,13.96310333,2375.9,2374.8,1.58288508]
[1769892901505,13.96310333,2375.9,2374.3,1.05290409]
[1769892901801,13.96310333,2375.9,2374.8,1.05271369]
[1769892902002,1.05214427,2376.1,2374.8,1.06539197]
[1769892902174,4.20857708,2376.2,2374.8,1.06539197]
[1769892902175,1.0521339,2376.2,2374.9,0.01267828]
[1769892902370,1.0521339,2376.2,2374.9,0.54284122]
[1769892902371,15.01523723,2376.2,2374.9,0.54284122]
[1769892902570,15.01523723,2376.2,2375.0,1.05263157]
[1769892903101,15.01523723,2376.2,2375.0,1.06530985]
[1769892903102,15.01521243,2376.2,2375.0,1.06530985]
[1769892903274,1.05192291,2376.6,2375.3,0.01267828]
[1769892903599,15.01498731,2376.7,2375.5,0.01267828]
[1769892903805,15.01484922,2377.0,2375.6,0.01267828]
[1769892903999,15.01484922,2377.0,2375.2,0.01267828]
[1769892904000,13.96310333,2376.8,2375.2,0.01267828]
[1769892904205,13.96310333,2376.8,2375.5,0.01267828]
[1769892904611,13.96310333,2376.6,2375.2,1.05254294]
[1769892904910,1.05180983,2376.9,2375.7,0.01267828]
[1769892905208,13.96310333,2377.5,2375.9,0.01267828]
[1769892905413,4.20694926,2377.6,2375.9,0.01267828]
[1769892905414,0.001,2377.6,2377.0,0.01267828]
[1769892905591,0.001,2377.6,2376.7,0.01267828]
[1769892905786,0.001,2377.6,2376.9,0.01267828]
[1769892906099,0.001,2377.6,2376.3,0.24624858]
[1769892906100,15.01558972,2377.6,2376.3,0.01267828]
[1769892906300,13.96310333,2377.5,2376.6,0.01267828]
[1769892906689,0.001,2377.6,2376.9,0.01267828]
[1769892906893,0.001,2377.6,2377.1,0.01267828]
[1769892907094,13.45049377,2377.6,2376.3,0.01267828]
[1769892907279,13.44949377,2377.4,2376.4,1.06468472]
[1769892907494,13.44949377,2377.4,2376.4,1.05198209]
[1769892907695,13.44949377,2377.4,2376.4,0.01267828]
[1769892907897,13.44949377,2377.4,2376.0,1.05217012]
[1769892908115,13.44949377,2377.2,2375.9,0.01267828]
[1769892908288,13.44949377,2377.2,2376.3,4.22089167]
[1769892908478,13.44949377,2377.2,2376.4,0.01267828]
[1769892908690,13.44949377,2377.2,2376.0,0.01267828]
[1769892908691,14.50119542,2377.1,2375.9,1.05220601]
[1769892908893,14.50119542,2377.1,2376.3,0.01267828]
[1769892909243,1.05156894,2377.4,2376.5,0.01267828]
[1769892909525,1.05156894,2377.4,2376.3,0.01267828]
[1769892909737,14.50106271,2377.4,2376.3,0.01267828]
[1769892909888,14.50106271,2377.4,2376.5,0.01267828]
[1769892910092,4.20622626,2377.5,2376.7,0.01267828]
[1769892910093,1.05152577,2377.5,2376.7,0.01267828]
[1769892910289,1.05152577,2377.5,2376.4,0.01267828]
[1769892910517,14.50200357,2377.6,2376.7,0.01267828]
[1769892910814,14.50200357,2377.6,2376.8,0.01267828]
[1769892911025,14.50200357,2377.6,2376.6,0.01267828]
[1769892911026,14.50200357,2377.6,2376.6,1.05189583]
[1769892911529,14.50200357,2377.6,2376.7,1.0518721]
[1769892912024,14.50200357,2377.6,2376.6,1.05191757]
[1769892912222,14.50200357,2377.6,2376.5,1.06461167]
[1769892912423,14.50200357,2377.6,2376.7,1.06454624]
[1769892912598,14.50200357,2377.6,2376.8,0.52847391]
[1769892912793,14.50200357,2377.6,2376.7,1.06452964]
[1769892912794,0.001,2377.6,2376.7,1.06452964]
[1769892912995,0.001,2377.6,2377.0,0.01267828]
[1769892913200,1.05124229,2378.2,2377.3,0.01267828]
[1769892913400,1.05124229,2378.2,2376.7,1.05185129]
[1769892913401,14.50073606,2378.2,2376.7,1.05185129]
[1769892913710,13.44949377,2378.0,2376.2,1.05209931]
[1769892913900,13.37177075,2378.0,2376.2,1.06475655]
[1769892914317,13.37177075,2378.0,2376.2,0.01267828]
[1769892914515,13.37177075,2378.0,2376.4,1.05198712]
[1769892914715,13.37177075,2378.0,2376.5,1.06462164]
[1769892914918,13.44949377,2377.8,2376.7,0.01267828]
[1769892915120,13.44949377,2377.8,2376.6,1.06457265]
[1769892915926,13.44949377,2377.8,2376.0,0.01267828]
[1769892916226,13.44949377,2377.6,2376.3,1.05203136]
[1769892916443,13.44949377,2377.4,2375.9,0.0011]
[1769892916654,13.44949377,2377.2,2375.9,0.0011]
[1769892916859,0.1024,2377.3,2374.7,0.01267828]
[1769892916860,13.44949377,2376.6,2374.7,0.01267828]
[1769892917001,13.44949377,2376.6,2374.6,0.01267828]
[1769892917002,13.44949377,2376.2,2374.2,1.05297775]
[1769892917196,13.44949377,2376.2,2374.0,0.01267828]
[1769892917197,13.44949377,2376.2,2374.7,1.06653872]
[1769892917507,13.44949377,2376.0,2374.9,0.01267828]
[1769892917702,13.44949377,2376.5,2375.3,0.01267828]
[1769892917900,1.0518878,2376.7,2375.6,0.01267828]
[1769892918108,1.0518878,2376.7,2375.7,0.01267828]
[1769892918445,1.0518878,2376.7,2375.6,0.01267828]
[1769892918653,1.0518878,2376.7,2374.9,0.01267828]
[1769892918654,15.38338157,2376.7,2374.9,0.01267828]
[1769892918798,15.38338157,2376.7,2375.3,0.01267828]
[1769892918998,15.38338157,2376.7,2375.4,1.05245432]
[1769892919303,15.38338157,2376.7,2375.5,0.01267828]
[1769892919517,15.38338157,2376.7,2375.6,0.01267828]
[1769892919742,15.38338157,2376.7,2375.5,0.01267828]
[1769892920030,15.38338157,2376.7,2375.2,1.05250849]
[1769892920333,15.38338157,2376.7,2374.9,0.89467828]
[1769892920334,15.38338157,2376.7,2374.9,1.05265292]
[1769892920499,15.38338157,2376.7,2375.2,1.05250098]
[1769892920708,15.38338157,2376.7,2375.3,1.06517617]
[1769892921036,15.38338157,2376.7,2375.4,1.58120414]
[1769892921266,13.44949377,2376.7,2375.7,0.01267828]
[1769892921530,13.44949377,2377.1,2375.7,0.01267828]
[1769892921946,13.44949377,2377.1,2375.4,1.58120414]
[1769892922109,13.44949377,2377.1,2375.4,1.05241672]
[1769892923144,13.44949377,2376.9,2375.3,4.209854]
[1769892924039,13.91651624,2376.9,2375.1,1.05256358]
[1769892924240,1.06442417,2377.0,2375.2,1.05254086]
[1769892924241,13.44949377,2376.7,2375.2,1.05254086]
[1769892924421,13.44949377,2376.7,2375.3,0.22318872]
[1769892924804,13.44949377,2376.7,2375.3,0.21051044]
[1769892925232,14.50141668,2376.6,2375.4,1.05245432]
[1769892925434,14.50141668,2376.6,2375.5,0.54727821]
[1769892925435,15.38341668,2376.6,2375.5,0.54727821]
[1769892925630,15.38341668,2376.6,2375.1,1.05257284]
[1769892925832,15.38341668,2376.6,2375.3,1.05249433]
[1769892926131,13.44949377,2376.5,2375.4,0.52625541]
[1769892926432,1.93392291,2376.6,2375.5,0.01267828]
[1769892926629,1.93392291,2376.6,2375.6,0.01267828]
[1769892926630,1.05192291,2376.6,2375.6,0.01267828]
[1769892926830,1.05192291,2376.6,2375.4,0.53893369]
[1769892927354,17.65666253,2376.9,2375.6,1.05236571]
[1769892927508,17.65666253,2376.9,2375.7,0.52745069]
[1769892928045,13.44949377,2376.8,2375.7,0.52745069]
[1769892929842,1.05187865,2376.7,2375.8,1.05227712]
[1769892930216,0.001,2376.7,2375.8,1.05227712]
[1769892930734,0.001,2376.7,2375.8,1.0649554]
[1769892930939,0.001,2376.7,2375.9,0.52741142]
[1769892931342,13.45049377,2376.7,2375.7,1.05231862]
[1769892931723,0.001,2376.7,2375.7,1.05231862]
[1769892934241,13.44949377,2376.6,2375.5,0.0011]
[1769892934547,13.44949377,2376.5,2375.5,0.0011]
[1769892934858,0.001,2376.7,2375.5,0.0011]
[1769892934859,13.44949377,2376.3,2375.5,0.0011]
[1769892935046,13.44949377,2376.3,2375.0,1.05262244]
[1769892935220,13.44949377,2376.3,2374.9,1.05265381]
[1769892935421,14.33149377,2376.3,2374.7,0.0011]
[1769892935721,14.33149377,2376.3,2375.3,1.05249488]
[1769892935922,14.33149377,2376.3,2375.2,1.05251924]
[1769892936123,1.05209999,2376.2,2374.9,4.22320459]
[1769892936450,1.05209999,2376.2,2375.0,1.89730627]
[1769892936627,14.50159376,2376.2,2375.0,1.89730627]
[1769892936820,14.50159376,2376.2,2374.9,1.05267382]
[1769892937026,1.05209999,2376.2,2374.9,1.05267382]
[1769892937321,1.05196717,2376.5,2375.0,0.01267828]
[1769892937938,1.05291646,2376.7,2375.6,0.01267828]
[1769892938349,0.001,2376.7,2375.6,1.05236571]
[1769892938644,12.86892817,2376.7,2375.6,1.05236571]
[1769892939247,12.86892817,2376.7,2375.6,1.06504399]
[1769892939248,0.001,2376.7,2375.6,1.06504399]
[1769892939425,0.001,2376.7,2375.7,0.52871851]
[1769892939823,0.001,2376.7,2375.7,0.54139679]
[1769892940242,0.001,2376.7,2375.8,1.05227712]
[1769892940629,0.001,2376.7,2375.9,0.01267828]
[1769892941026,0.001,2376.7,2375.8,1.0649554]
[1769892941227,0.001,2376.7,2375.9,0.58154607]
[1769892942131,14.86421092,2377.9,2376.4,0.01267828]
[1769892942332,14.86421092,2377.9,2376.5,1.05196717]
[1769892942553,14.86421092,2377.9,2376.6,0.01267828]
[1769892942770,1.051171,2378.3,2376.7,0.01267828]
[1769892942925,1.051171,2378.3,2376.8,0.01267828]
[1769892943129,15.14421949,2378.4,2376.9,0.01267828]
[1769892943668,15.14421949,2378.4,2377.0,0.01267828]
[1769892943833,0.001,2377.7,2377.0,0.01267828]
[1769892944162,0.001,2377.7,2377.1,0.01267828]
[1769892944529,0.001,2377.7,2377.2,1.05165741]
[1769892946328,15.14421949,2378.4,2377.2,1.05165741]
[1769892946636,15.14421949,2378.4,2377.4,1.05156894]
[1769892946948,15.14421949,2378.4,2377.0,4.21930792]
[1769892946949,15.14421949,2378.4,2377.0,1.05174325]
[1769892947335,15.14421949,2378.4,2377.2,1.05163101]
[1769892947655,15.14421949,2378.4,2377.2,1.05162851]
[1769892947656,13.8128631,2378.3,2377.2,1.05162851]
[1769892948154,13.8128631,2378.3,2377.3,1.05161276]
[1769892948357,13.8128631,2378.3,2377.3,1.05161023]
[1769892948658,1.0512152,2378.2,2377.1,1.05167181]
[1769892948955,1.0512152,2378.2,2377.0,4.20697281]
[1769892948956,14.8640783,2378.2,2376.8,4.20723316]
[1769892949158,13.8128631,2378.0,2376.6,1.0518935]
[1769892949964,13.8128631,2378.0,2377.0,1.05171437]
[1769892950379,1.0512152,2378.2,2377.1,1.05169532]
[1769892950674,4.20486081,2378.3,2376.9,4.20680661]
[1769892950847,4.20486081,2378.3,2377.0,0.5258641]
[1769892951549,1.051171,2378.3,2377.0,0.01267828]
[1769892951742,14.09306395,2378.4,2377.0,0.24624858]
[1769892951942,0.28020085,2378.4,2377.3,0.01267828]
[1769892952178,13.8128631,2379.6,2378.0,0.01267828]
[1769892952470,0.21971779,2379.3,2378.3,0.01267828]
[1769892952647,1.05050844,2379.8,2378.5,1.05108261]
[1769892953040,14.86337154,2379.8,2378.1,0.89467828]
[1769892953367,14.86337154,2379.8,2378.0,1.05129864]
[1769892953368,13.8128631,2379.6,2378.0,1.05129864]
[1769892953742,13.8128631,2379.6,2378.3,1.05114257]
[1769892954143,13.8128631,2379.6,2377.9,0.01267828]
[1769892954355,13.8128631,2379.6,2378.0,1.05128248]
[1769892954559,14.28102234,2379.6,2378.0,1.05128248]
[1769892954736,13.8128631,2379.6,2378.1,0.52566663]
[1769892954939,13.8128631,2379.4,2377.6,0.89467828]
[1769892955162,13.8128631,2379.4,2377.4,4.20621713]
[1769892955163,13.8128631,2379.2,2377.4,4.20621713]
[1769892955351,13.8128631,2379.0,2377.7,1.05143473]
[1769892955753,13.8128631,2379.0,2377.6,1.05144599]
[1769892955965,13.8128631,2379.0,2377.7,1.05142813]
[1769892956171,13.8128631,2379.0,2377.7,1.0513934]
[1769892956675,14.33310567,2379.0,2377.6,1.05144861]
[1769892956838,14.33310567,2379.0,2377.4,4.20612545]
[1769892956839,13.8128631,2378.8,2377.4,4.20612545]
[1769892958540,13.8128631,2378.8,2377.3,1.05268571]
[1769892958759,13.8128631,2378.8,2377.4,0.01267828]
[1769892958966,1.05099424,2378.7,2377.6,1.05148048]
[1769892959166,1.05099424,2378.7,2377.6,1.06415876]
[1769892959367,1.05099424,2378.7,2377.7,0.01267828]
[1769892959992,1.05099424,2378.7,2377.6,1.06415876]
[1769892960194,18.01595896,2379.2,2377.8,0.01267828]
[1769892960993,18.01595896,2379.2,2378.0,1.05130361]
[1769892961156,18.01595896,2379.2,2377.9,0.01267828]
[1769892961363,13.8128631,2379.1,2377.4,1.66819797]
[1769892961664,13.82554138,2379.1,2377.4,1.05153823]
[1769892961970,13.8128631,2379.1,2377.9,1.05134066]
[1769892962169,13.8128631,2379.1,2378.0,0.52568856]